[Event "*** Titled Tuesday Blitz"]
[Site "Chess.com"]
[Date "2020.01.07"]
[Round "5"]
[White "Mr_Sinigami"]
[Black "WelshTiger"]
[Result "1-0"]
[WhiteElo "2581"]
[BlackElo "2378"]
[TimeControl "180+2"]
[EndTime "14:04:24 PST"]
[Termination "Mr_Sinigami won by resignation"]

1. d4 {[%clk 0:03:01.9]} 1... Nf6 {[%clk 0:03:00.8]} 2. Nf3 {[%clk 0:03:02.9]}
2... g6 {[%clk 0:03:01.5]} 3. Bf4 {[%clk 0:03:03]} 3... Bg7 {[%clk 0:03:01.7]}
4. e3 {[%clk 0:03:04.2]} 4... O-O {[%clk 0:03:02.5]} 5. h3 {[%clk 0:03:05.7]}
5... d6 {[%clk 0:03:03.9]} 6. Be2 {[%clk 0:03:05.7]} 6... Nc6 {[%clk 0:03:05.2]}
7. O-O {[%clk 0:03:03]} 7... Nd7 {[%clk 0:03:06.3]} 8. c4 {[%clk 0:03:01.9]}
8... e5 {[%clk 0:03:06]} 9. Bg3 {[%clk 0:03:02.3]} 9... exd4 {[%clk 0:02:51]}
10. exd4 {[%clk 0:03:02.9]} 10... Qf6 {[%clk 0:02:51.1]} 11. Bh4 {[%clk
0:02:59.4]} 11... Qf5 {[%clk 0:02:52]} 12. Nc3 {[%clk 0:02:57.8]} 12... Nd8
{[%clk 0:02:12.5]} 13. Nd5 {[%clk 0:02:51.4]} 13... Kh8 {[%clk 0:01:46.3]} 14.
g4 {[%clk 0:02:43.7]} 14... Qe4 {[%clk 0:01:32.3]} 15. Bd3 {[%clk 0:02:43.9]}
1-0

[Event "*** Titled Tuesday Blitz"]
[Site "Chess.com"]
[Date "2020.01.07"]
[Round "5"]
[White "MiroVlasenko"]
[Black "BasilSmash"]
[Result "0-1"]
[WhiteElo "2683"]
[BlackElo "2449"]
[TimeControl "180+2"]
[EndTime "14:04:34 PST"]
[Termination "BasilSmash won by resignation"]

1. d4 {[%clk 0:03:01.9]} 1... d5 {[%clk 0:02:58.7]} 2. Bf4 {[%clk 0:03:02.7]}
2... c5 {[%clk 0:02:55.7]} 3. e4 {[%clk 0:03:02.9]} 3... dxe4 {[%clk 0:02:56.4]}
4. d5 {[%clk 0:03:04]} 4... Nf6 {[%clk 0:02:57.4]} 5. Nc3 {[%clk 0:03:05.4]}
5... g6 {[%clk 0:02:58]} 6. f3 {[%clk 0:03:06.4]} 6... exf3 {[%clk 0:02:57.7]}
7. Nxf3 {[%clk 0:03:07.9]} 7... Bg7 {[%clk 0:02:58.9]} 8. Qd2 {[%clk 0:03:09.3]}
8... O-O {[%clk 0:02:59.1]} 9. Bh6 {[%clk 0:03:09.2]} 9... a6 {[%clk 0:03:00.3]}
10. Bxg7 {[%clk 0:03:07.7]} 10... Kxg7 {[%clk 0:03:02.2]} 11. h4 {[%clk
0:03:09]} 11... Bg4 {[%clk 0:03:01.4]} 12. O-O-O {[%clk 0:03:03.3]} 12... b5
{[%clk 0:03:01.9]} 13. Qf4 {[%clk 0:02:58.1]} 13... Nbd7 {[%clk 0:02:58.4]} 14.
Be2 {[%clk 0:02:50.9]} 14... h5 {[%clk 0:02:58.5]} 15. d6 {[%clk 0:02:47.1]}
15... exd6 {[%clk 0:02:54.4]} 16. Rxd6 {[%clk 0:02:47.1]} 16... Qe7 {[%clk
0:02:53.7]} 17. Rhd1 {[%clk 0:02:37.5]} 17... b4 {[%clk 0:02:39.4]} 18. Ng5
{[%clk 0:02:09.7]} 18... bxc3 {[%clk 0:02:29.4]} 19. Bxg4 {[%clk 0:02:08]} 19...
cxb2+ {[%clk 0:02:27.7]} 20. Kb1 {[%clk 0:02:08.5]} 20... hxg4 {[%clk
0:02:28.1]} 21. h5 {[%clk 0:02:08.9]} 21... Qe5 {[%clk 0:02:09.7]} 22. h6+
{[%clk 0:02:09.3]} 22... Kg8 {[%clk 0:02:10.6]} 23. h7+ {[%clk 0:02:03.1]} 23...
Nxh7 {[%clk 0:02:03.2]} 0-1

[Event "*** Titled Tuesday Blitz"]
[Site "Chess.com"]
[Date "2020.01.07"]
[Round "5"]
[White "DonPreuss"]
[Black "AleksanderHnydiuk"]
[Result "0-1"]
[WhiteElo "2149"]
[BlackElo "2438"]
[TimeControl "180+2"]
[EndTime "14:04:41 PST"]
[Termination "AleksanderHnydiuk won by resignation"]

1. d4 {[%clk 0:03:01.9]} 1... Nf6 {[%clk 0:03:00.1]} 2. Nc3 {[%clk 0:03:02.2]}
2... d5 {[%clk 0:02:57.7]} 3. e4 {[%clk 0:03:02.8]} 3... dxe4 {[%clk 0:02:51.3]}
4. f3 {[%clk 0:03:03.9]} 4... exf3 {[%clk 0:02:47.6]} 5. Nxf3 {[%clk 0:03:04]}
5... c6 {[%clk 0:02:48.8]} 6. Bc4 {[%clk 0:03:03.6]} 6... Bf5 {[%clk 0:02:47.8]}
7. O-O {[%clk 0:03:02.4]} 7... e6 {[%clk 0:02:48.9]} 8. Ne5 {[%clk 0:03:03]}
8... Bg6 {[%clk 0:02:31]} 9. g4 {[%clk 0:02:55.9]} 9... Nbd7 {[%clk 0:02:26.9]}
10. Nxg6 {[%clk 0:02:54]} 10... hxg6 {[%clk 0:02:27.2]} 11. Qf3 {[%clk
0:02:32.9]} 11... Nb6 {[%clk 0:02:27.3]} 12. d5 {[%clk 0:01:49.9]} 12... Nxc4
{[%clk 0:02:20.6]} 13. dxe6 {[%clk 0:01:50.3]} 13... Qd4+ {[%clk 0:02:14.9]} 14.
Kh1 {[%clk 0:01:48]} 14... O-O-O {[%clk 0:02:05.5]} 15. exf7 {[%clk 0:01:44.5]}
15... Qxg4 {[%clk 0:01:58.9]} 16. Qxg4+ {[%clk 0:01:33.8]} 16... Nxg4 {[%clk
0:01:59.4]} 17. Bg5 {[%clk 0:01:31.7]} 17... Rxh2+ {[%clk 0:01:57.8]} 18. Kg1
{[%clk 0:01:32.6]} 18... Bc5+ {[%clk 0:01:58.5]} 0-1

[Event "*** Titled Tuesday Blitz"]
[Site "Chess.com"]
[Date "2020.01.07"]
[Round "5"]
[White "PawnEatingZombie"]
[Black "Playgood28"]
[Result "1/2-1/2"]
[WhiteElo "2292"]
[BlackElo "2285"]
[TimeControl "180+2"]
[EndTime "14:04:42 PST"]
[Termination "Game drawn by agreement"]

1. d4 {[%clk 0:03:01.9]} 1... f5 {[%clk 0:02:59.4]} 2. Nc3 {[%clk 0:03:02.3]}
2... d5 {[%clk 0:02:59.3]} 3. Bf4 {[%clk 0:03:02.4]} 3... c6 {[%clk 0:03:00.6]}
4. e3 {[%clk 0:03:03.6]} 4... Nf6 {[%clk 0:03:00.3]} 5. Nf3 {[%clk 0:03:04]}
5... e6 {[%clk 0:03:01.6]} 6. Bd3 {[%clk 0:03:05.1]} 6... Be7 {[%clk 0:03:02.6]}
7. O-O {[%clk 0:03:05.2]} 7... O-O {[%clk 0:03:04]} 8. Ne2 {[%clk 0:03:06.7]}
8... Bd7 {[%clk 0:03:05.2]} 9. c4 {[%clk 0:03:06.9]} 9... Be8 {[%clk 0:03:06.5]}
10. Ne5 {[%clk 0:03:00.9]} 10... Bh5 {[%clk 0:03:06]} 11. f3 {[%clk 0:02:56]}
11... Nbd7 {[%clk 0:03:05.8]} 12. Qc2 {[%clk 0:02:55.3]} 12... Nxe5 {[%clk
0:02:54.3]} 13. Bxe5 {[%clk 0:02:55.3]} 13... Bd6 {[%clk 0:02:32.6]} 14. cxd5
{[%clk 0:02:33.9]} 14... Nxd5 {[%clk 0:02:15.4]} 15. Bxd6 {[%clk 0:02:10.7]}
15... Qxd6 {[%clk 0:02:10.9]} 16. Qd2 {[%clk 0:02:10.4]} 16... e5 {[%clk
0:02:05.7]} 17. Bc4 {[%clk 0:02:09.1]} 17... Bf7 {[%clk 0:02:02.5]} 18. Rfd1
{[%clk 0:02:00.8]} 18... Rad8 {[%clk 0:02:01.3]} 1/2-1/2

[Event "*** Titled Tuesday Blitz"]
[Site "Chess.com"]
[Date "2020.01.07"]
[Round "5"]
[White "albi1999"]
[Black "13MiRacLe"]
[Result "0-1"]
[WhiteElo "2534"]
[BlackElo "2706"]
[TimeControl "180+2"]
[EndTime "14:05:08 PST"]
[Termination "13MiRacLe won by resignation"]

1. d4 {[%clk 0:03:01.9]} 1... Nf6 {[%clk 0:02:54.7]} 2. c4 {[%clk 0:03:02.5]}
2... g6 {[%clk 0:02:55.3]} 3. g3 {[%clk 0:03:01.6]} 3... d5 {[%clk 0:02:55.8]}
4. cxd5 {[%clk 0:03:01.5]} 4... Nxd5 {[%clk 0:02:57.7]} 5. Bg2 {[%clk
0:03:02.3]} 5... Bg7 {[%clk 0:02:58.8]} 6. e4 {[%clk 0:03:02.8]} 6... Nb6 {[%clk
0:02:59.7]} 7. Ne2 {[%clk 0:03:03.5]} 7... O-O {[%clk 0:03:00.6]} 8. O-O {[%clk
0:03:03.7]} 8... Na6 {[%clk 0:03:01.8]} 9. Nbc3 {[%clk 0:03:03.4]} 9... c5
{[%clk 0:03:02.8]} 10. d5 {[%clk 0:03:01.9]} 10... e6 {[%clk 0:03:04.2]} 11. a4
{[%clk 0:02:55.1]} 11... exd5 {[%clk 0:03:03]} 12. exd5 {[%clk 0:02:49.3]} 12...
Re8 {[%clk 0:02:59]} 13. Bf4 {[%clk 0:02:22.4]} 13... Nc4 {[%clk 0:02:58]} 14.
b3 {[%clk 0:02:19.4]} 14... Nd6 {[%clk 0:02:48.6]} 15. h3 {[%clk 0:02:17.3]}
15... Nb4 {[%clk 0:02:43.8]} 16. Qd2 {[%clk 0:01:57]} 16... Bf5 {[%clk
0:02:37.4]} 17. g4 {[%clk 0:01:21.8]} 17... Ne4 {[%clk 0:02:37.6]} 18. Nxe4
{[%clk 0:01:19]} 18... Bxe4 {[%clk 0:02:38.2]} 19. Bxe4 {[%clk 0:01:06]} 19...
Bxa1 {[%clk 0:02:36.7]} 20. Rxa1 {[%clk 0:01:02.9]} 20... Rxe4 {[%clk
0:02:37.1]} 21. Nc3 {[%clk 0:01:04.4]} 21... Rd4 {[%clk 0:02:37.4]} 22. Qe2
{[%clk 0:00:49.6]} 22... Rxf4 {[%clk 0:02:37]} 0-1

[Event "*** Titled Tuesday Blitz"]
[Site "Chess.com"]
[Date "2020.01.07"]
[Round "5"]
[White "Colombiano07"]
[Black "Korona_91"]
[Result "1-0"]
[WhiteElo "2181"]
[BlackElo "2325"]
[TimeControl "180+2"]
[EndTime "14:05:19 PST"]
[Termination "Colombiano07 won by resignation"]

1. d4 {[%clk 0:03:01.9]} 1... g6 {[%clk 0:02:58.7]} 2. e4 {[%clk 0:03:00.5]}
2... Bg7 {[%clk 0:02:59.9]} 3. Nf3 {[%clk 0:03:00.3]} 3... d6 {[%clk 0:03:01.4]}
4. Nc3 {[%clk 0:03:00.5]} 4... c6 {[%clk 0:03:01.1]} 5. Be3 {[%clk 0:03:00.5]}
5... Nf6 {[%clk 0:03:02.4]} 6. h3 {[%clk 0:03:01.5]} 6... O-O {[%clk 0:03:01.8]}
7. Qd2 {[%clk 0:03:02.6]} 7... b5 {[%clk 0:03:03.3]} 8. Bd3 {[%clk 0:03:02.4]}
8... a6 {[%clk 0:03:03.3]} 9. Bh6 {[%clk 0:03:03.1]} 9... Nbd7 {[%clk
0:03:04.4]} 10. Bxg7 {[%clk 0:03:03.9]} 10... Kxg7 {[%clk 0:03:04.9]} 11. e5
{[%clk 0:03:05.4]} 11... Nd5 {[%clk 0:03:01.3]} 12. Ne4 {[%clk 0:03:04.9]} 12...
dxe5 {[%clk 0:02:57.3]} 13. dxe5 {[%clk 0:02:58.4]} 13... Qc7 {[%clk 0:02:56.5]}
14. e6 {[%clk 0:02:58]} 14... fxe6 {[%clk 0:02:55.5]} 15. Nfg5 {[%clk
0:02:48.9]} 15... Ne5 {[%clk 0:02:52.2]} 16. Nc5 {[%clk 0:02:41.8]} 16... Rf6
{[%clk 0:02:39.5]} 17. O-O-O {[%clk 0:02:36.5]} 17... Nxd3+ {[%clk 0:02:39.7]}
18. Nxd3 {[%clk 0:02:29.4]} 18... c5 {[%clk 0:02:32.4]} 19. Rhe1 {[%clk
0:02:25.7]} 19... c4 {[%clk 0:02:32.9]} 20. Ne5 {[%clk 0:02:26.2]} 20... c3
{[%clk 0:02:32.2]} 21. Qd4 {[%clk 0:02:25.1]} 21... cxb2+ {[%clk 0:02:32]} 22.
Kxb2 {[%clk 0:02:24.8]} 22... b4 {[%clk 0:02:15.1]} 23. Rd3 {[%clk 0:01:48.4]}
23... a5 {[%clk 0:02:06.9]} 24. Ng4 {[%clk 0:01:47.7]} 24... Ba6 {[%clk
0:02:03.8]} 25. Nxe6+ {[%clk 0:01:46.9]} 25... Kf7 {[%clk 0:02:02.8]} 26. Nxc7
{[%clk 0:01:47.8]} 26... Nxc7 {[%clk 0:02:02.4]} 27. Nxf6 {[%clk 0:01:45.9]}
27... Bxd3 {[%clk 0:02:02.1]} 1-0

[Event "*** Titled Tuesday Blitz"]
[Site "Chess.com"]
[Date "2020.01.07"]
[Round "5"]
[White "quesfr"]
[Black "Caracternin123"]
[Result "0-1"]
[WhiteElo "2210"]
[BlackElo "2522"]
[TimeControl "180+2"]
[EndTime "14:06:15 PST"]
[Termination "Caracternin123 won by resignation"]

1. e4 {[%clk 0:03:01.9]} 1... Nf6 {[%clk 0:02:43.7]} 2. Nc3 {[%clk 0:03:01.3]}
2... d5 {[%clk 0:02:44.5]} 3. e5 {[%clk 0:03:00.9]} 3... d4 {[%clk 0:02:45.8]}
4. exf6 {[%clk 0:03:01.2]} 4... dxc3 {[%clk 0:02:47.1]} 5. fxg7 {[%clk
0:03:01.9]} 5... cxd2+ {[%clk 0:02:47.7]} 6. Bxd2 {[%clk 0:03:02.6]} 6... Bxg7
{[%clk 0:02:48.8]} 7. Qh5 {[%clk 0:03:03.4]} 7... Nc6 {[%clk 0:02:41.3]} 8.
O-O-O {[%clk 0:02:56.9]} 8... Qd4 {[%clk 0:02:41.5]} 9. Bc3 {[%clk 0:01:46.8]}
9... Qf4+ {[%clk 0:02:40.5]} 10. Bd2 {[%clk 0:01:47.8]} 10... Qa4 {[%clk
0:02:00.5]} 11. Kb1 {[%clk 0:01:32.4]} 11... Bg4 {[%clk 0:02:00]} 12. Qh4 {[%clk
0:00:15.5]} 12... Qd4 {[%clk 0:01:24.8]} 0-1

[Event "*** Titled Tuesday Blitz"]
[Site "Chess.com"]
[Date "2020.01.07"]
[Round "5"]
[White "Orest_Vovk"]
[Black "Sven_Tica"]
[Result "0-1"]
[WhiteElo "2432"]
[BlackElo "2665"]
[TimeControl "180+2"]
[EndTime "14:06:19 PST"]
[Termination "Sven_Tica won by resignation"]

1. g4 {[%clk 0:03:01.9]} 1... d5 {[%clk 0:03:00.8]} 2. Bg2 {[%clk 0:03:02.7]}
2... Bxg4 {[%clk 0:03:01.3]} 3. c4 {[%clk 0:03:03.4]} 3... Nf6 {[%clk 0:02:49]}
4. Qb3 {[%clk 0:03:03.9]} 4... Bc8 {[%clk 0:02:49.1]} 5. cxd5 {[%clk 0:03:04.1]}
5... Nbd7 {[%clk 0:02:49.8]} 6. d4 {[%clk 0:03:04.1]} 6... Nb6 {[%clk
0:02:46.9]} 7. Nc3 {[%clk 0:03:03.5]} 7... e6 {[%clk 0:02:46.7]} 8. e4 {[%clk
0:02:57.7]} 8... exd5 {[%clk 0:02:41.8]} 9. e5 {[%clk 0:02:58.1]} 9... Ne4
{[%clk 0:02:38.9]} 10. Nxd5 {[%clk 0:02:35.1]} 10... Nxd5 {[%clk 0:02:39.8]} 11.
Bxe4 {[%clk 0:02:34.7]} 11... Bb4+ {[%clk 0:02:40.7]} 12. Kf1 {[%clk 0:02:29.2]}
12... Be6 {[%clk 0:02:40.6]} 13. Qg3 {[%clk 0:02:12]} 13... g6 {[%clk 0:02:27]}
14. Nf3 {[%clk 0:02:08.1]} 14... Be7 {[%clk 0:02:24.1]} 15. Bh6 {[%clk 0:02:00]}
15... Qd7 {[%clk 0:02:23.9]} 16. Kg2 {[%clk 0:01:56.9]} 16... c6 {[%clk
0:02:20.7]} 17. h4 {[%clk 0:01:44.7]} 17... O-O-O {[%clk 0:02:16.8]} 18. Rhc1
{[%clk 0:01:42]} 18... Kb8 {[%clk 0:02:12.2]} 19. a3 {[%clk 0:01:41.5]} 19...
Ka8 {[%clk 0:02:10.6]} 20. b4 {[%clk 0:01:40.8]} 20... f5 {[%clk 0:02:09.4]} 21.
Bd3 {[%clk 0:00:48.5]} 21... f4 {[%clk 0:02:10.3]} 22. Bxf4 {[%clk 0:00:40.6]}
22... Nxf4+ {[%clk 0:02:11.4]} 23. Qxf4 {[%clk 0:00:41.2]} 23... Rhf8 {[%clk
0:02:13.1]} 24. Qe3 {[%clk 0:00:21.9]} 24... Bd5 {[%clk 0:02:13]} 25. Be2 {[%clk
0:00:16.8]} 25... Qg4+ {[%clk 0:02:13.9]} 26. Kf1 {[%clk 0:00:16.7]} 26... Bxf3
{[%clk 0:02:14.5]} 0-1

[Event "*** Titled Tuesday Blitz"]
[Site "Chess.com"]
[Date "2020.01.07"]
[Round "5"]
[White "Federtiu"]
[Black "Bulldog167"]
[Result "1-0"]
[WhiteElo "2549"]
[BlackElo "2720"]
[TimeControl "180+2"]
[EndTime "14:06:21 PST"]
[Termination "Federtiu won by resignation"]

1. g3 {[%clk 0:03:01.9]} 1... e5 {[%clk 0:03:00.5]} 2. Bg2 {[%clk 0:03:03.8]}
2... Nc6 {[%clk 0:03:02.1]} 3. d3 {[%clk 0:03:04.4]} 3... g6 {[%clk 0:03:03.4]}
4. a3 {[%clk 0:03:04.1]} 4... Bg7 {[%clk 0:03:04.2]} 5. b4 {[%clk 0:03:05.7]}
5... d6 {[%clk 0:02:57.6]} 6. Bb2 {[%clk 0:03:04.2]} 6... Nf6 {[%clk 0:02:56.3]}
7. c4 {[%clk 0:03:00.3]} 7... O-O {[%clk 0:02:56.2]} 8. Nc3 {[%clk 0:03:00.3]}
8... Be6 {[%clk 0:02:56.2]} 9. e4 {[%clk 0:03:00.4]} 9... a5 {[%clk 0:02:53.6]}
10. b5 {[%clk 0:02:45.6]} 10... Nd4 {[%clk 0:02:54.7]} 11. Nge2 {[%clk
0:02:45.9]} 11... Nxe2 {[%clk 0:02:50.8]} 12. Qxe2 {[%clk 0:02:45.8]} 12... Nd7
{[%clk 0:02:52.2]} 13. Na4 {[%clk 0:02:44.3]} 13... Nc5 {[%clk 0:02:39.6]} 14.
Qc2 {[%clk 0:02:42.1]} 14... Nxa4 {[%clk 0:02:32.3]} 15. Qxa4 {[%clk 0:02:41.6]}
15... f5 {[%clk 0:02:32.4]} 16. exf5 {[%clk 0:02:40.9]} 16... Bxf5 {[%clk
0:02:33.7]} 17. Rd1 {[%clk 0:02:14.9]} 17... Bg4 {[%clk 0:02:24.5]} 18. Bxb7
{[%clk 0:02:14.5]} 18... Bxd1 {[%clk 0:02:24]} 19. Qxd1 {[%clk 0:02:16.4]} 19...
Rb8 {[%clk 0:02:24.6]} 20. Bd5+ {[%clk 0:02:17.4]} 20... Kh8 {[%clk 0:02:26]}
21. O-O {[%clk 0:02:13.4]} 21... Qg5 {[%clk 0:02:02.1]} 22. Bc1 {[%clk
0:02:10.6]} 22... Qf5 {[%clk 0:01:58.1]} 23. Be3 {[%clk 0:02:05.3]} 23... h5
{[%clk 0:01:53.4]} 24. Be4 {[%clk 0:02:05.9]} 24... Qf7 {[%clk 0:01:50.6]} 25.
Qa4 {[%clk 0:02:06.3]} 25... Kh7 {[%clk 0:01:41.9]} 26. Qxa5 {[%clk 0:02:05.7]}
26... Bh6 {[%clk 0:01:43.3]} 27. Bxh6 {[%clk 0:02:04.6]} 27... Kxh6 {[%clk
0:01:45.2]} 28. Qd2+ {[%clk 0:02:05.9]} 28... Kg7 {[%clk 0:01:45.7]} 29. Qg5
{[%clk 0:01:58.7]} 29... h4 {[%clk 0:01:40.2]} 30. Qxh4 {[%clk 0:01:52.1]} 30...
Rh8 {[%clk 0:01:40.3]} 31. Qg4 {[%clk 0:01:51.9]} 31... Qe7 {[%clk 0:01:24.6]}
32. Qxg6+ {[%clk 0:01:49.5]} 32... Kf8 {[%clk 0:01:26]} 33. a4 {[%clk
0:01:47.4]} 33... Rg8 {[%clk 0:01:21.4]} 34. Qf5+ {[%clk 0:01:48]} 34... Ke8
{[%clk 0:01:22.3]} 35. a5 {[%clk 0:01:46.6]} 1-0

[Event "*** Titled Tuesday Blitz"]
[Site "Chess.com"]
[Date "2020.01.07"]
[Round "5"]
[White "IgorBjelobrk"]
[Black "Sebastian"]
[Result "0-1"]
[WhiteElo "2638"]
[BlackElo "2947"]
[TimeControl "180+2"]
[EndTime "14:06:22 PST"]
[Termination "Sebastian won by resignation"]

1. d4 {[%clk 0:02:58.2]} 1... Nf6 {[%clk 0:03:00.5]} 2. c4 {[%clk 0:02:58.9]}
2... e6 {[%clk 0:03:01.6]} 3. Nc3 {[%clk 0:03:00]} 3... d5 {[%clk 0:03:02.5]} 4.
Nf3 {[%clk 0:02:59.8]} 4... c5 {[%clk 0:03:02.6]} 5. cxd5 {[%clk 0:03:00.4]}
5... Nxd5 {[%clk 0:03:04.3]} 6. e4 {[%clk 0:02:57.7]} 6... Nxc3 {[%clk
0:03:05.3]} 7. bxc3 {[%clk 0:02:59.6]} 7... cxd4 {[%clk 0:03:06.9]} 8. cxd4
{[%clk 0:03:00.7]} 8... Bb4+ {[%clk 0:03:08.5]} 9. Bd2 {[%clk 0:03:01.6]} 9...
Bxd2+ {[%clk 0:03:10.2]} 10. Qxd2 {[%clk 0:03:02.5]} 10... O-O {[%clk
0:03:12.1]} 11. Bc4 {[%clk 0:03:02]} 11... Nd7 {[%clk 0:03:13.5]} 12. O-O {[%clk
0:03:02.5]} 12... b6 {[%clk 0:03:15.1]} 13. Rac1 {[%clk 0:02:59.9]} 13... Bb7
{[%clk 0:03:15.8]} 14. Qe3 {[%clk 0:02:59.3]} 14... Rc8 {[%clk 0:03:14.1]} 15.
Bb3 {[%clk 0:02:41.6]} 15... Rxc1 {[%clk 0:03:00.7]} 16. Rxc1 {[%clk 0:02:41.7]}
16... Nf6 {[%clk 0:03:02.3]} 17. Nd2 {[%clk 0:02:42.2]} 17... Qd7 {[%clk
0:03:00.8]} 18. f3 {[%clk 0:02:39.5]} 18... Rd8 {[%clk 0:03:01.1]} 19. Nf1
{[%clk 0:02:15.8]} 19... Qxd4 {[%clk 0:02:53.4]} 20. Rc7 {[%clk 0:02:15.8]}
20... Qxe3+ {[%clk 0:02:48.1]} 21. Nxe3 {[%clk 0:02:17.7]} 21... Rd7 {[%clk
0:02:49.1]} 22. Rc3 {[%clk 0:02:17.8]} 22... Kf8 {[%clk 0:02:32.6]} 23. Ba4
{[%clk 0:02:13.4]} 23... Rd4 {[%clk 0:02:32.9]} 24. Bb5 {[%clk 0:02:07.1]} 24...
a6 {[%clk 0:02:20.3]} 25. Rc7 {[%clk 0:02:01.8]} 25... axb5 {[%clk 0:02:12.3]}
26. Rxb7 {[%clk 0:02:02.7]} 26... Nd7 {[%clk 0:02:13.9]} 27. Nc2 {[%clk
0:01:44.2]} 27... Rd1+ {[%clk 0:02:09.3]} 28. Kf2 {[%clk 0:01:44.9]} 28... Rd2+
{[%clk 0:02:06]} 29. Kg3 {[%clk 0:01:46.1]} 29... Rxc2 {[%clk 0:02:01.3]} 30.
Rxd7 {[%clk 0:01:47]} 30... Rxa2 {[%clk 0:02:02.7]} 31. Rb7 {[%clk 0:01:48.1]}
31... Ra6 {[%clk 0:01:58.5]} 32. Kf4 {[%clk 0:01:45.4]} 32... b4 {[%clk
0:01:58.2]} 33. Ke3 {[%clk 0:01:46.6]} 33... Ra2 {[%clk 0:01:50.4]} 34. g4
{[%clk 0:01:43]} 34... Rxh2 {[%clk 0:01:49.1]} 35. Rxb6 {[%clk 0:01:44.2]} 35...
Rb2 {[%clk 0:01:49]} 36. Rb7 {[%clk 0:01:45.2]} 36... g5 {[%clk 0:01:48.2]} 37.
Kd4 {[%clk 0:01:42.8]} 37... Rb3 {[%clk 0:01:46.1]} 38. Ke5 {[%clk 0:01:40.6]}
38... Rxf3 {[%clk 0:01:36.9]} 39. Rxb4 {[%clk 0:01:41]} 39... Kg7 {[%clk
0:01:37.4]} 0-1

[Event "*** Titled Tuesday Blitz"]
[Site "Chess.com"]
[Date "2020.01.07"]
[Round "5"]
[White "AminMolaei"]
[Black "pedromartinez91"]
[Result "1-0"]
[WhiteElo "2578"]
[BlackElo "2366"]
[TimeControl "180+2"]
[EndTime "14:06:24 PST"]
[Termination "AminMolaei won by checkmate"]

1. d4 {[%clk 0:03:01.9]} 1... f5 {[%clk 0:02:54.4]} 2. g4 {[%clk 0:03:02.3]}
2... fxg4 {[%clk 0:02:54.3]} 3. h3 {[%clk 0:03:02.7]} 3... g3 {[%clk 0:02:55.6]}
4. fxg3 {[%clk 0:03:03.8]} 4... c5 {[%clk 0:02:54.1]} 5. d5 {[%clk 0:03:01.2]}
5... Nf6 {[%clk 0:02:51.2]} 6. Bg2 {[%clk 0:03:01.5]} 6... d6 {[%clk 0:02:49]}
7. e4 {[%clk 0:03:02.1]} 7... g6 {[%clk 0:02:48.1]} 8. Ne2 {[%clk 0:03:03.5]}
8... Bg7 {[%clk 0:02:49.5]} 9. O-O {[%clk 0:03:05]} 9... O-O {[%clk 0:02:50]}
10. Nbc3 {[%clk 0:03:04.9]} 10... e5 {[%clk 0:02:47.9]} 11. dxe6 {[%clk
0:02:57.2]} 11... Bxe6 {[%clk 0:02:48.2]} 12. e5 {[%clk 0:02:57.9]} 12... dxe5
{[%clk 0:02:37]} 13. Qxd8 {[%clk 0:02:58.1]} 13... Rxd8 {[%clk 0:02:37.4]} 14.
Bxb7 {[%clk 0:02:59.6]} 14... Nbd7 {[%clk 0:02:35.1]} 15. Bxa8 {[%clk
0:03:00.5]} 15... Rxa8 {[%clk 0:02:37]} 16. Kg2 {[%clk 0:02:58.2]} 16... Bf5
{[%clk 0:02:25]} 17. g4 {[%clk 0:02:49.7]} 17... Bxc2 {[%clk 0:02:25]} 18. Ng3
{[%clk 0:02:51.1]} 18... Bd3 {[%clk 0:02:13.1]} 19. Rf2 {[%clk 0:02:49.2]} 19...
c4 {[%clk 0:02:10.5]} 20. Be3 {[%clk 0:02:50.3]} 20... a5 {[%clk 0:02:01.3]} 21.
g5 {[%clk 0:02:50.2]} 21... Nh5 {[%clk 0:02:01.8]} 22. Nxh5 {[%clk 0:02:50.2]}
22... gxh5 {[%clk 0:02:03.7]} 23. Rd1 {[%clk 0:02:49.1]} 23... Nf8 {[%clk
0:01:55.4]} 24. Nd5 {[%clk 0:02:49.3]} 24... Ng6 {[%clk 0:01:52.2]} 25. b3
{[%clk 0:02:21.7]} 25... Rd8 {[%clk 0:01:40.8]} 26. bxc4 {[%clk 0:02:20.7]}
26... e4 {[%clk 0:01:28.1]} 27. Nf6+ {[%clk 0:02:20.3]} 27... Kh8 {[%clk
0:01:27.8]} 28. Nxh5 {[%clk 0:02:17.7]} 28... Be5 {[%clk 0:01:24.8]} 29. c5
{[%clk 0:02:17.8]} 29... Nh4+ {[%clk 0:01:25.4]} 30. Kh1 {[%clk 0:02:18.3]}
30... Nf3 {[%clk 0:01:21.7]} 31. c6 {[%clk 0:02:12.1]} 31... Rc8 {[%clk
0:01:10.1]} 32. Rxd3 {[%clk 0:02:08.8]} 32... exd3 {[%clk 0:01:11]} 33. Rxf3
{[%clk 0:02:10.4]} 33... h6 {[%clk 0:01:08.1]} 34. g6 {[%clk 0:02:10.1]} 34...
Rxc6 {[%clk 0:00:53.4]} 35. Rf8# {[%clk 0:02:10.4]} 1-0